[Event "*** Titled Tuesday Blitz"]
[Site "Chess.com"]
[Date "2020.11.24"]
[Round "1"]
[White "DenishevM"]
[Black "Mikasinski"]
[Result "1-0"]
[WhiteElo "2617"]
[BlackElo "2327"]
[TimeControl "180+1"]
[EndTime "10:23:07 PST"]
[Termination "DenishevM won by resignation"]

1. d4 {[%clk 0:03:00.9]} 1... Nf6 {[%clk 0:02:59.7]} 2. c4 {[%clk 0:03:01.1]}
2... g6 {[%clk 0:03:00.3]} 3. Nc3 {[%clk 0:03:00.5]} 3... Bg7 {[%clk 0:03:01]}
4. Nf3 {[%clk 0:03:00.6]} 4... d6 {[%clk 0:03:01.6]} 5. e4 {[%clk 0:03:01]} 5...
O-O {[%clk 0:03:02.2]} 6. h3 {[%clk 0:03:01.2]} 6... e5 {[%clk 0:02:57.8]} 7. d5
{[%clk 0:02:59.7]} 7... Na6 {[%clk 0:02:58.3]} 8. Be3 {[%clk 0:02:59.2]} 8...
Nc5 {[%clk 0:02:49.9]} 9. Nd2 {[%clk 0:02:58.3]} 9... a5 {[%clk 0:02:49.8]} 10.
g4 {[%clk 0:02:56.6]} 10... a4 {[%clk 0:02:43.8]} 11. Be2 {[%clk 0:02:52.2]}
11... c6 {[%clk 0:02:40]} 12. Qc2 {[%clk 0:02:47.9]} 12... Qa5 {[%clk
0:02:36.5]} 13. a3 {[%clk 0:02:39.7]} 13... Bd7 {[%clk 0:01:16]} 14. O-O-O
{[%clk 0:02:34]} 14... cxd5 {[%clk 0:01:03.3]} 15. cxd5 {[%clk 0:02:24.4]} 15...
b5 {[%clk 0:01:00.6]} 16. Kb1 {[%clk 0:02:15.4]} 16... Rfc8 {[%clk 0:00:59.1]}
17. g5 {[%clk 0:02:12.3]} 17... Nfxe4 {[%clk 0:00:51.8]} 18. Ncxe4 {[%clk
0:00:58.2]} 18... Nxe4 {[%clk 0:00:51.5]} 19. Qd3 {[%clk 0:00:57.8]} 19... Nc5
{[%clk 0:00:35.4]} 20. Bxc5 {[%clk 0:00:54.7]} 20... dxc5 {[%clk 0:00:33.2]} 21.
Ka2 {[%clk 0:00:49.5]} 21... c4 {[%clk 0:00:29.7]} 22. Qc3 {[%clk 0:00:48.3]}
22... Qxc3 {[%clk 0:00:29.8]} 23. bxc3 {[%clk 0:00:49.2]} 23... Bf5 {[%clk
0:00:26.7]} 24. Bf3 {[%clk 0:00:46.1]} 24... Ra6 {[%clk 0:00:26.7]} 25. Ne4
{[%clk 0:00:45.5]} 25... Rd8 {[%clk 0:00:24]} 26. Rd2 {[%clk 0:00:41.6]} 26...
Bf8 {[%clk 0:00:21.3]} 27. h4 {[%clk 0:00:37.7]} 27... h5 {[%clk 0:00:20.1]} 28.
Re1 {[%clk 0:00:32.8]} 28... Kg7 {[%clk 0:00:18.7]} 29. Nf6 {[%clk 0:00:31.7]}
29... Bd6 {[%clk 0:00:17.3]} 30. Be4 {[%clk 0:00:29]} 30... Be7 {[%clk
0:00:13.5]} 31. Bxf5 {[%clk 0:00:27.7]} 31... Bxf6 {[%clk 0:00:13.1]} 32. gxf6+
{[%clk 0:00:27.6]} 32... Rxf6 {[%clk 0:00:11.8]} 33. Be4 {[%clk 0:00:26.6]}
33... Rf4 {[%clk 0:00:11.7]} 34. f3 {[%clk 0:00:27.1]} 34... Rxh4 {[%clk
0:00:11.8]} 35. d6 {[%clk 0:00:27.5]} 35... Rf4 {[%clk 0:00:10.5]} 36. d7 {[%clk
0:00:26.9]} 36... Rf6 {[%clk 0:00:10.8]} 37. Bb7 {[%clk 0:00:26.3]} 37... Kf8
{[%clk 0:00:07.6]} 38. Rxe5 {[%clk 0:00:24.5]} 38... h4 {[%clk 0:00:07.5]} 39.
Bc8 {[%clk 0:00:20.4]} 39... Rxf3 {[%clk 0:00:07.3]} 40. Rde2 {[%clk 0:00:19.9]}
40... Kg7 {[%clk 0:00:03.2]} 41. Re8 {[%clk 0:00:20]} 41... Rxd7 {[%clk
0:00:03]} 42. Bxd7 {[%clk 0:00:20.9]} 42... Rd3 {[%clk 0:00:02.8]} 43. Bc8
{[%clk 0:00:18.9]} 43... Rxc3 {[%clk 0:00:02.9]} 44. R8e4 {[%clk 0:00:19.1]}
44... h3 {[%clk 0:00:03.1]} 45. R4e3 {[%clk 0:00:19.5]} 45... h2 {[%clk
0:00:01.9]} 46. Bb7 {[%clk 0:00:19]} 46... Rxe3 {[%clk 0:00:01.5]} 47. Rxe3
{[%clk 0:00:19.4]} 47... Kf6 {[%clk 0:00:02]} 48. Rh3 {[%clk 0:00:19]} 48... Ke5
{[%clk 0:00:02]} 49. Bc6 {[%clk 0:00:19]} 49... f5 {[%clk 0:00:02.8]} 50. Bxb5
{[%clk 0:00:19.3]} 50... c3 {[%clk 0:00:03.2]} 51. Rxh2 {[%clk 0:00:18.9]} 51...
Kf4 {[%clk 0:00:03]} 52. Bxa4 {[%clk 0:00:19]} 52... g5 {[%clk 0:00:03.6]} 53.
Rh8 {[%clk 0:00:18.2]} 53... g4 {[%clk 0:00:04]} 54. Bc2 {[%clk 0:00:18.8]}
54... g3 {[%clk 0:00:03.5]} 55. Rf8 {[%clk 0:00:19.3]} 55... g2 {[%clk
0:00:02.8]} 56. Rg8 {[%clk 0:00:19.5]} 56... Kf3 {[%clk 0:00:02.9]} 57. Bxf5
{[%clk 0:00:19.2]} 57... Kf2 {[%clk 0:00:03.3]} 58. a4 {[%clk 0:00:19.1]} 58...
g1=Q {[%clk 0:00:03.5]} 59. Rxg1 {[%clk 0:00:19.8]} 59... Kxg1 {[%clk
0:00:04.4]} 60. Bc2 {[%clk 0:00:20.1]} 60... Kf2 {[%clk 0:00:05.3]} 61. a5
{[%clk 0:00:21]} 61... Ke3 {[%clk 0:00:06.2]} 62. a6 {[%clk 0:00:21.9]} 62...
Kd4 {[%clk 0:00:07.1]} 63. a7 {[%clk 0:00:22.4]} 63... Kc5 {[%clk 0:00:08]} 64.
a8=Q {[%clk 0:00:23.3]} 1-0

[Event "*** Titled Tuesday Blitz"]
[Site "Chess.com"]
[Date "2020.11.24"]
[Round "1"]
[White "Eliwood44"]
[Black "Paralinch"]
[Result "1-0"]
[WhiteElo "2449"]
[BlackElo "2846"]
[TimeControl "180+1"]
[EndTime "10:23:12 PST"]
[Termination "Eliwood44 won by resignation"]

1. d4 {[%clk 0:03:00.9]} 1... Nf6 {[%clk 0:02:58.3]} 2. Nf3 {[%clk 0:02:51.9]}
2... d5 {[%clk 0:02:58.2]} 3. c4 {[%clk 0:02:51.6]} 3... dxc4 {[%clk 0:02:58]}
4. e3 {[%clk 0:02:50.6]} 4... e6 {[%clk 0:02:58.3]} 5. Bxc4 {[%clk 0:02:50.5]}
5... c5 {[%clk 0:02:58.9]} 6. O-O {[%clk 0:02:50.2]} 6... a6 {[%clk 0:02:59.6]}
7. Be2 {[%clk 0:02:48.7]} 7... cxd4 {[%clk 0:02:56.2]} 8. Nxd4 {[%clk
0:02:47.4]} 8... Bd6 {[%clk 0:02:54.1]} 9. Nc3 {[%clk 0:02:43.9]} 9... O-O
{[%clk 0:02:54.2]} 10. Bf3 {[%clk 0:02:43.8]} 10... e5 {[%clk 0:02:47.8]} 11.
Nb3 {[%clk 0:02:38.8]} 11... Nc6 {[%clk 0:02:47.5]} 12. e4 {[%clk 0:02:29.8]}
12... h6 {[%clk 0:02:43.7]} 13. Nd5 {[%clk 0:02:29]} 13... Nxd5 {[%clk
0:02:42.5]} 14. exd5 {[%clk 0:02:29.3]} 14... Ne7 {[%clk 0:02:42.6]} 15. Nd2
{[%clk 0:02:27.5]} 15... b5 {[%clk 0:02:40.8]} 16. Ne4 {[%clk 0:02:26.9]} 16...
f5 {[%clk 0:02:40.7]} 17. Nxd6 {[%clk 0:02:25.9]} 17... Qxd6 {[%clk 0:02:41.6]}
18. g3 {[%clk 0:02:24.9]} 18... Bb7 {[%clk 0:02:39.9]} 19. Re1 {[%clk
0:02:16.7]} 19... e4 {[%clk 0:02:32.4]} 20. Bg2 {[%clk 0:02:14.6]} 20... Qxd5
{[%clk 0:02:28.8]} 21. Bd2 {[%clk 0:02:13.3]} 21... Qf7 {[%clk 0:02:22.5]} 22.
Bb4 {[%clk 0:02:10.6]} 22... Rfd8 {[%clk 0:02:22.2]} 23. Qe2 {[%clk 0:02:06.1]}
23... Nc6 {[%clk 0:02:22.1]} 24. Bc5 {[%clk 0:02:05.6]} 24... Nd4 {[%clk
0:02:20.9]} 25. Bxd4 {[%clk 0:02:03.8]} 25... Rxd4 {[%clk 0:02:21.8]} 26. Red1
{[%clk 0:02:03]} 26... Rad8 {[%clk 0:02:18.1]} 27. Rxd4 {[%clk 0:02:03]} 27...
Rxd4 {[%clk 0:02:19]} 28. Qe3 {[%clk 0:02:03.9]} 28... Qd7 {[%clk 0:02:17.7]}
29. Bh3 {[%clk 0:02:01.3]} 29... Rd1+ {[%clk 0:02:14]} 30. Rxd1 {[%clk
0:02:00.7]} 30... Qxd1+ {[%clk 0:02:14.9]} 31. Kg2 {[%clk 0:02:01.4]} 31... Qf3+
{[%clk 0:02:15.2]} 32. Qxf3 {[%clk 0:01:59.7]} 32... exf3+ {[%clk 0:02:16.1]}
33. Kf1 {[%clk 0:02:00.2]} 33... Be4 {[%clk 0:02:00.3]} 34. Ke1 {[%clk
0:01:59.8]} 34... Kf7 {[%clk 0:02:00.7]} 35. Kd2 {[%clk 0:01:59.8]} 35... Kf6
{[%clk 0:02:01.1]} 36. Ke3 {[%clk 0:01:59.7]} 36... Ke5 {[%clk 0:02:01.6]} 37.
Bf1 {[%clk 0:01:59.5]} 37... g5 {[%clk 0:01:59.5]} 38. a4 {[%clk 0:01:58.7]}
38... Bc6 {[%clk 0:01:43.3]} 39. Bd3 {[%clk 0:01:51.6]} 39... f4+ {[%clk
0:01:25.9]} 40. gxf4+ {[%clk 0:01:49.3]} 40... gxf4+ {[%clk 0:01:26.8]} 41. Kd2
{[%clk 0:01:49.4]} 41... bxa4 {[%clk 0:01:18.7]} 42. Bxa6 {[%clk 0:01:48.9]}
42... Kd4 {[%clk 0:01:19.1]} 43. Bd3 {[%clk 0:01:41.4]} 43... Bd7 {[%clk
0:01:14.6]} 44. Ba6 {[%clk 0:01:33.9]} 44... Bc6 {[%clk 0:01:05.5]} 45. Bd3
{[%clk 0:01:32.5]} 45... Be8 {[%clk 0:00:55.6]} 46. Ba6 {[%clk 0:01:30.8]} 46...
Bd7 {[%clk 0:00:52.2]} 47. Bd3 {[%clk 0:01:28.7]} 47... Ke5 {[%clk 0:00:52.5]}
48. Ba6 {[%clk 0:01:26.5]} 48... Kf5 {[%clk 0:00:51.7]} 49. Bb7 {[%clk
0:01:18.2]} 49... Kg4 {[%clk 0:00:51.6]} 50. Kd3 {[%clk 0:01:18.2]} 50... Bb5+
{[%clk 0:00:43.5]} 51. Kd4 {[%clk 0:01:18.1]} 51... Be2 {[%clk 0:00:43.5]} 52.
Bc8+ {[%clk 0:01:13.8]} 52... Kh4 {[%clk 0:00:43.1]} 53. Bd7 {[%clk 0:01:12.8]}
53... Bf1 {[%clk 0:00:43.2]} 54. Ke4 {[%clk 0:01:08.9]} 54... Bh3 {[%clk
0:00:42.7]} 55. Bxa4 {[%clk 0:01:07.3]} 55... Bg4 {[%clk 0:00:39.2]} 56. Kxf4
{[%clk 0:01:04.1]} 56... Kh3 {[%clk 0:00:39.7]} 57. Bc6 {[%clk 0:00:59.7]} 57...
Bc8 {[%clk 0:00:34]} 58. Bxf3 {[%clk 0:00:49.2]} 58... Kxh2 {[%clk 0:00:34]} 59.
b4 {[%clk 0:00:47.5]} 59... Bd7 {[%clk 0:00:30.2]} 60. Bg4 {[%clk 0:00:42.1]}
60... Bb5 {[%clk 0:00:28]} 61. Ke5 {[%clk 0:00:38.5]} 61... Kg2 {[%clk
0:00:18.5]} 62. f4 {[%clk 0:00:37.7]} 62... Kg3 {[%clk 0:00:18.9]} 63. Bc8
{[%clk 0:00:25]} 63... h5 {[%clk 0:00:18.2]} 64. f5 {[%clk 0:00:24.7]} 64... h4
{[%clk 0:00:18.1]} 65. f6 {[%clk 0:00:24.7]} 65... Bc4 {[%clk 0:00:18.6]} 66. b5
{[%clk 0:00:22.3]} 66... Bxb5 {[%clk 0:00:17.2]} 67. f7 {[%clk 0:00:21.9]} 67...
Ba6 {[%clk 0:00:18.1]} 1-0

[Event "*** Titled Tuesday Blitz"]
[Site "Chess.com"]
[Date "2020.11.24"]
[Round "1"]
[White "CakeinSpace2002"]
[Black "tdf98pantani"]
[Result "1/2-1/2"]
[WhiteElo "2387"]
[BlackElo "2716"]
[TimeControl "180+1"]
[EndTime "10:23:14 PST"]
[Termination "Game drawn by repetition"]

1. d4 {[%clk 0:03:00.8]} 1... Nf6 {[%clk 0:02:56.8]} 2. c4 {[%clk 0:03:00.7]}
2... e6 {[%clk 0:02:57]} 3. Nc3 {[%clk 0:03:00.8]} 3... Bb4 {[%clk 0:02:56.4]}
4. e3 {[%clk 0:03:00.9]} 4... c5 {[%clk 0:02:55.6]} 5. Nf3 {[%clk 0:02:59.6]}
5... O-O {[%clk 0:02:53.1]} 6. Bd3 {[%clk 0:02:59.4]} 6... Bxc3+ {[%clk
0:02:51.9]} 7. bxc3 {[%clk 0:02:59.4]} 7... d6 {[%clk 0:02:52.3]} 8. O-O {[%clk
0:02:59.3]} 8... Nc6 {[%clk 0:02:52.2]} 9. e4 {[%clk 0:02:58.5]} 9... e5 {[%clk
0:02:52.2]} 10. Re1 {[%clk 0:02:48.3]} 10... h6 {[%clk 0:02:51]} 11. Bb2 {[%clk
0:02:37.7]} 11... b6 {[%clk 0:02:49.4]} 12. Qa4 {[%clk 0:02:27.8]} 12... Bd7
{[%clk 0:02:46.6]} 13. Qc2 {[%clk 0:02:23.8]} 13... Rc8 {[%clk 0:02:37.6]} 14.
Rad1 {[%clk 0:02:22.7]} 14... Qe7 {[%clk 0:02:36.5]} 15. d5 {[%clk 0:02:18.8]}
15... Na5 {[%clk 0:02:35.8]} 16. Nh4 {[%clk 0:02:13.2]} 16... Nh5 {[%clk
0:02:31.4]} 17. g3 {[%clk 0:02:10.8]} 17... g6 {[%clk 0:02:16]} 18. Bc1 {[%clk
0:02:08.4]} 18... Kh7 {[%clk 0:02:14.8]} 19. Qd2 {[%clk 0:02:06.4]} 19... g5
{[%clk 0:02:13.5]} 20. Nf5 {[%clk 0:02:05.7]} 20... Bxf5 {[%clk 0:02:12.1]} 21.
exf5 {[%clk 0:02:06.6]} 21... Nf6 {[%clk 0:02:07.5]} 22. f4 {[%clk 0:01:59.5]}
22... gxf4 {[%clk 0:02:05.8]} 23. gxf4 {[%clk 0:02:00.4]} 23... e4 {[%clk
0:02:05.9]} 24. Kh1 {[%clk 0:01:39.7]} 24... Rg8 {[%clk 0:02:03.2]} 25. Be2
{[%clk 0:01:24]} 25... Ng4 {[%clk 0:01:53.2]} 26. Bxg4 {[%clk 0:01:21.7]} 26...
Rxg4 {[%clk 0:01:52.4]} 27. Qe2 {[%clk 0:01:19.5]} 27... Rcg8 {[%clk 0:01:50.2]}
28. Rg1 {[%clk 0:01:18.1]} 28... Qh4 {[%clk 0:01:41.4]} 29. Rxg4 {[%clk
0:01:08.5]} 29... Rxg4 {[%clk 0:01:24.2]} 30. Qxe4 {[%clk 0:01:01.3]} 30... Qf6
{[%clk 0:01:23.9]} 31. Rg1 {[%clk 0:00:57.9]} 31... Rxg1+ {[%clk 0:01:23]} 32.
Kxg1 {[%clk 0:00:58.8]} 32... Kg7 {[%clk 0:01:17]} 33. Bd2 {[%clk 0:00:56]}
33... Kf8 {[%clk 0:01:16.5]} 34. Kf2 {[%clk 0:00:52.3]} 34... Qe7 {[%clk
0:01:13.7]} 35. Qd3 {[%clk 0:00:47.7]} 35... Qh4+ {[%clk 0:01:13.4]} 36. Kg2
{[%clk 0:00:45]} 36... Qg4+ {[%clk 0:01:12.4]} 37. Kf2 {[%clk 0:00:45.3]} 37...
Qd1 {[%clk 0:01:12.2]} 38. f6 {[%clk 0:00:40.2]} 38... Nxc4 {[%clk 0:01:01.9]}
39. Qxc4 {[%clk 0:00:41.1]} 39... Qxd2+ {[%clk 0:01:01.9]} 40. Kg3 {[%clk
0:00:38.7]} 40... Qe1+ {[%clk 0:00:59.3]} 41. Kf3 {[%clk 0:00:32.5]} 41... Qh1+
{[%clk 0:00:59.1]} 42. Kg3 {[%clk 0:00:31]} 42... Qg1+ {[%clk 0:00:58.9]} 43.
Kf3 {[%clk 0:00:31.1]} 43... Qxh2 {[%clk 0:00:55.5]} 44. Qa6 {[%clk 0:00:26.5]}
44... Qh3+ {[%clk 0:00:50.1]} 45. Kf2 {[%clk 0:00:26.4]} 45... Qh4+ {[%clk
0:00:45.9]} 46. Kf3 {[%clk 0:00:25.5]} 46... Qxf6 {[%clk 0:00:46.3]} 47. Qxa7
{[%clk 0:00:25.7]} 47... Qxc3+ {[%clk 0:00:45.7]} 48. Kg4 {[%clk 0:00:26.3]}
48... Kg7 {[%clk 0:00:31.1]} 49. Qxb6 {[%clk 0:00:22.7]} 49... Qf6 {[%clk
0:00:20.3]} 50. a4 {[%clk 0:00:21.8]} 50... Qg6+ {[%clk 0:00:20.6]} 51. Kf3
{[%clk 0:00:22]} 51... Qd3+ {[%clk 0:00:21.1]} 52. Kg4 {[%clk 0:00:22.2]} 52...
Qxd5 {[%clk 0:00:21.2]} 53. a5 {[%clk 0:00:22.4]} 53... Qg2+ {[%clk 0:00:21.1]}
54. Kh4 {[%clk 0:00:22.7]} 54... f5 {[%clk 0:00:17.3]} 55. Qc7+ {[%clk
0:00:21.6]} 55... Kh8 {[%clk 0:00:16.2]} 56. Qd8+ {[%clk 0:00:21.1]} 56... Kg7
{[%clk 0:00:14.9]} 57. Qe7+ {[%clk 0:00:21.4]} 57... Kg8 {[%clk 0:00:15]} 58.
Qe8+ {[%clk 0:00:21]} 58... Kg7 {[%clk 0:00:15.4]} 59. Qe7+ {[%clk 0:00:21.5]}
59... Kg6 {[%clk 0:00:15.7]} 60. Qe8+ {[%clk 0:00:20.1]} 60... Kg7 {[%clk
0:00:15.8]} 61. Qe7+ {[%clk 0:00:20.3]} 1/2-1/2

[Event "*** Titled Tuesday Blitz"]
[Site "Chess.com"]
[Date "2020.11.24"]
[Round "1"]
[White "zala02"]
[Black "amiralfio"]
[Result "1-0"]
[WhiteElo "2152"]
[BlackElo "2498"]
[TimeControl "180+1"]
[EndTime "10:23:14 PST"]
[Termination "zala02 won by resignation"]

1. d4 {[%clk 0:02:59.9]} 1... Nf6 {[%clk 0:02:57.9]} 2. c4 {[%clk 0:02:58.2]}
2... e6 {[%clk 0:02:58.2]} 3. Nc3 {[%clk 0:02:57.5]} 3... d5 {[%clk 0:02:58.4]}
4. cxd5 {[%clk 0:02:57]} 4... exd5 {[%clk 0:02:59.3]} 5. Bg5 {[%clk 0:02:55.8]}
5... Be7 {[%clk 0:02:56.9]} 6. e3 {[%clk 0:02:55.9]} 6... c6 {[%clk 0:02:56.4]}
7. Bd3 {[%clk 0:02:54.3]} 7... Nbd7 {[%clk 0:02:53.8]} 8. Nge2 {[%clk
0:02:47.2]} 8... O-O {[%clk 0:02:53.3]} 9. O-O {[%clk 0:02:42.3]} 9... Nh5
{[%clk 0:02:51.4]} 10. Bxe7 {[%clk 0:02:29]} 10... Qxe7 {[%clk 0:02:52.3]} 11.
Qd2 {[%clk 0:02:25.7]} 11... Ndf6 {[%clk 0:02:51.1]} 12. Rae1 {[%clk 0:02:22]}
12... Re8 {[%clk 0:02:42.5]} 13. Nc1 {[%clk 0:02:20.3]} 13... Bd7 {[%clk
0:02:32.5]} 14. f3 {[%clk 0:02:17.5]} 14... g6 {[%clk 0:02:23]} 15. e4 {[%clk
0:01:45]} 15... dxe4 {[%clk 0:02:09.3]} 16. fxe4 {[%clk 0:01:45.9]} 16... c5
{[%clk 0:01:16]} 17. e5 {[%clk 0:01:32.6]} 17... Ng4 {[%clk 0:01:12.1]} 18. h3
{[%clk 0:01:18.7]} 18... cxd4 {[%clk 0:01:11.6]} 19. Nd5 {[%clk 0:01:18.4]}
19... Qc5 {[%clk 0:00:38.3]} 20. hxg4 {[%clk 0:01:13.8]} 20... Qxd5 {[%clk
0:00:36.4]} 21. gxh5 {[%clk 0:01:13.8]} 21... Rxe5 {[%clk 0:00:36.1]} 22. Rxe5
{[%clk 0:01:09.2]} 22... Qxe5 {[%clk 0:00:37]} 23. hxg6 {[%clk 0:01:09.4]} 23...
hxg6 {[%clk 0:00:37.9]} 24. Qf4 {[%clk 0:01:04.2]} 24... Qxf4 {[%clk 0:00:19]}
25. Rxf4 {[%clk 0:01:05.1]} 25... Be6 {[%clk 0:00:19.5]} 26. Rxd4 {[%clk
0:01:01.8]} 26... Rc8 {[%clk 0:00:20.1]} 27. Nb3 {[%clk 0:00:58.9]} 27... Kg7
{[%clk 0:00:17.5]} 28. Kf2 {[%clk 0:00:56.7]} 28... Kf6 {[%clk 0:00:16.2]} 29.
Ke3 {[%clk 0:00:50.6]} 29... Rh8 {[%clk 0:00:14.8]} 30. Be4 {[%clk 0:00:48.6]}
30... b6 {[%clk 0:00:14.2]} 31. Bf3 {[%clk 0:00:47.8]} 31... Rc8 {[%clk
0:00:12.9]} 32. Kd2 {[%clk 0:00:39.2]} 32... Bf5 {[%clk 0:00:10.5]} 33. Be4
{[%clk 0:00:34.9]} 33... Be6 {[%clk 0:00:10.6]} 34. Bd3 {[%clk 0:00:16.5]} 34...
Ke5 {[%clk 0:00:08.7]} 35. Re4+ {[%clk 0:00:14.9]} 35... Kf6 {[%clk 0:00:08.8]}
36. Rf4+ {[%clk 0:00:15.1]} 36... Ke5 {[%clk 0:00:07.5]} 37. Re4+ {[%clk
0:00:12.7]} 37... Kf6 {[%clk 0:00:07.8]} 38. Nd4 {[%clk 0:00:13.1]} 38... Bxa2
{[%clk 0:00:04.2]} 39. b3 {[%clk 0:00:11.7]} 39... Rd8 {[%clk 0:00:03.3]} 40.
Kc3 {[%clk 0:00:11]} 40... Kg5 {[%clk 0:00:02.7]} 41. Re2 {[%clk 0:00:09.6]}
41... Rc8+ {[%clk 0:00:01.8]} 42. Kb2 {[%clk 0:00:06.9]} 42... Rd8 {[%clk
0:00:02.1]} 43. Re4 {[%clk 0:00:06.3]} 43... f5 {[%clk 0:00:02.1]} 44. Ne6+
{[%clk 0:00:03.7]} 44... Kf6 {[%clk 0:00:02.7]} 45. Nxd8 {[%clk 0:00:03.7]}
45... fxe4 {[%clk 0:00:03.3]} 46. Bxe4 {[%clk 0:00:04.2]} 46... Ke5 {[%clk
0:00:03.2]} 47. Bf3 {[%clk 0:00:04.4]} 47... g5 {[%clk 0:00:03.3]} 48. Kxa2
{[%clk 0:00:04.4]} 48... Kf4 {[%clk 0:00:03.8]} 49. Ne6+ {[%clk 0:00:04]} 49...
Kf5 {[%clk 0:00:03.1]} 50. Nd4+ {[%clk 0:00:03.8]} 50... Ke5 {[%clk 0:00:02.8]}
51. Nc6+ {[%clk 0:00:04.1]} 51... Kf4 {[%clk 0:00:03.3]} 52. Nxa7 {[%clk
0:00:03.9]} 52... g4 {[%clk 0:00:04.2]} 53. Bc6 {[%clk 0:00:03.9]} 53... Ke3
{[%clk 0:00:04.3]} 54. Ka3 {[%clk 0:00:04.4]} 54... Kd4 {[%clk 0:00:04.7]} 55.
Kb4 {[%clk 0:00:05]} 1-0

[Event "*** Titled Tuesday Blitz"]
[Site "Chess.com"]
[Date "2020.11.24"]
[Round "1"]
[White "IsuruAlahakoon"]
[Black "Tpros"]
[Result "1-0"]
[WhiteElo "2369"]
[BlackElo "2595"]
[TimeControl "180+1"]
[EndTime "10:23:18 PST"]
[Termination "IsuruAlahakoon won on time"]

1. Nf3 {[%clk 0:03:00.1]} 1... Nf6 {[%clk 0:02:59.5]} 2. d4 {[%clk 0:02:57.5]}
2... g6 {[%clk 0:02:59]} 3. Bg5 {[%clk 0:02:56.1]} 3... Bg7 {[%clk 0:02:55.3]}
4. Nbd2 {[%clk 0:02:53]} 4... h6 {[%clk 0:02:54.9]} 5. Bh4 {[%clk 0:02:48.8]}
5... d6 {[%clk 0:02:55.2]} 6. e4 {[%clk 0:02:47.8]} 6... g5 {[%clk 0:02:54.7]}
7. Bg3 {[%clk 0:02:46.8]} 7... Nh5 {[%clk 0:02:55.3]} 8. c3 {[%clk 0:02:44.8]}
8... e6 {[%clk 0:02:54.9]} 9. Bd3 {[%clk 0:02:41.2]} 9... f5 {[%clk 0:02:50.8]}
10. exf5 {[%clk 0:02:32.3]} 10... exf5 {[%clk 0:02:51.7]} 11. Qe2+ {[%clk
0:02:32.2]} 11... Qe7 {[%clk 0:02:50.7]} 12. Qxe7+ {[%clk 0:01:47.8]} 12... Kxe7
{[%clk 0:02:51.6]} 13. h3 {[%clk 0:01:42.9]} 13... Nc6 {[%clk 0:02:48.4]} 14.
O-O-O {[%clk 0:01:41.4]} 14... Bd7 {[%clk 0:02:42.3]} 15. Rde1+ {[%clk
0:01:38.4]} 15... Kf8 {[%clk 0:02:34.3]} 16. Bh2 {[%clk 0:01:36.9]} 16... Re8
{[%clk 0:02:31.8]} 17. g4 {[%clk 0:01:28]} 17... fxg4 {[%clk 0:02:30.7]} 18.
hxg4 {[%clk 0:01:28.1]} 18... Rxe1+ {[%clk 0:02:10.9]} 19. Rxe1 {[%clk
0:01:26.4]} 19... Bxg4 {[%clk 0:02:08.2]} 20. d5 {[%clk 0:01:23.1]} 20... Ne7
{[%clk 0:02:05.2]} 21. c4 {[%clk 0:01:13.3]} 21... b6 {[%clk 0:01:49.2]} 22. Ng1
{[%clk 0:01:08]} 22... Bf5 {[%clk 0:01:44.2]} 23. Be2 {[%clk 0:01:02]} 23... Nf6
{[%clk 0:01:39.1]} 24. Nb3 {[%clk 0:00:59.8]} 24... Ng4 {[%clk 0:01:32.8]} 25.
Bg3 {[%clk 0:00:56]} 25... Kf7 {[%clk 0:01:18.3]} 26. Nf3 {[%clk 0:00:54.3]}
26... Re8 {[%clk 0:01:14.2]} 27. Nbd4 {[%clk 0:00:49.4]} 27... Bd7 {[%clk
0:01:11.4]} 28. Ne6 {[%clk 0:00:49.1]} 28... Bxe6 {[%clk 0:00:55.4]} 29. dxe6+
{[%clk 0:00:50]} 29... Kg6 {[%clk 0:00:37.5]} 30. Nxg5 {[%clk 0:00:45]} 30...
Kxg5 {[%clk 0:00:35.6]} 31. f4+ {[%clk 0:00:44.3]} 31... Kg6 {[%clk 0:00:24.7]}
32. Bxg4 {[%clk 0:00:41.6]} 32... Bd4 {[%clk 0:00:23.2]} 33. Kc2 {[%clk
0:00:38.1]} 33... Nf5 {[%clk 0:00:22.9]} 34. Bh2 {[%clk 0:00:35.4]} 34... h5
{[%clk 0:00:22.5]} 35. Bh3 {[%clk 0:00:34.5]} 35... Kf6 {[%clk 0:00:21.8]} 36.
Re4 {[%clk 0:00:32.3]} 36... c5 {[%clk 0:00:21.5]} 37. Re2 {[%clk 0:00:20.8]}
37... Rxe6 {[%clk 0:00:19]} 38. Rxe6+ {[%clk 0:00:18.1]} 38... Kxe6 {[%clk
0:00:19.9]} 39. b3 {[%clk 0:00:16.8]} 39... Kf6 {[%clk 0:00:20.2]} 40. Kd3
{[%clk 0:00:16.4]} 40... Bf2 {[%clk 0:00:19.9]} 41. Ke4 {[%clk 0:00:16]} 41...
Ne7 {[%clk 0:00:17.9]} 42. f5 {[%clk 0:00:15.9]} 42... h4 {[%clk 0:00:14.1]} 43.
Bxd6 {[%clk 0:00:15.6]} 43... Bg3 {[%clk 0:00:14.8]} 44. Bxe7+ {[%clk
0:00:12.7]} 44... Kxe7 {[%clk 0:00:15.3]} 45. Kd5 {[%clk 0:00:13.1]} 45... Bf4
{[%clk 0:00:08]} 46. Kc6 {[%clk 0:00:13]} 46... Bd2 {[%clk 0:00:08]} 47. Kb7
{[%clk 0:00:12.4]} 47... Ba5 {[%clk 0:00:02.1]} 48. Kxa7 {[%clk 0:00:12.5]}
48... Kf6 {[%clk 0:00:02.7]} 49. Ka6 {[%clk 0:00:11.7]} 49... Ke7 {[%clk
0:00:02.9]} 50. a3 {[%clk 0:00:09.8]} 50... Kf6 {[%clk 0:00:02.6]} 51. Kb5
{[%clk 0:00:09.9]} 51... Bc3 {[%clk 0:00:01.8]} 52. Kxb6 {[%clk 0:00:09.2]}
52... Bb2 {[%clk 0:00:02]} 53. b4 {[%clk 0:00:07]} 53... Bxa3 {[%clk 0:00:02]}
54. bxc5 {[%clk 0:00:07.1]} 54... Ke7 {[%clk 0:00:02.4]} 55. c6 {[%clk
0:00:07.3]} 55... Bd6 {[%clk 0:00:02.2]} 56. c7 {[%clk 0:00:06.3]} 1-0